bitfinex/quotes_SOLUSD_20250930
["timestamp","ask_amount","ask_price","bid_price","bid_amount"]
[1759218757088,2.39055213,209.48,209.44,64.65682394]
[1759218757294,0.71,209.52,209.45,0.69]
[1759218757468,2.39055213,209.5,209.46,33.66]
[1759218757674,2.39055213,209.5,209.47,0.69]
[1759218757880,2.39055213,209.5,209.48,33.66]
[1759218758196,0.71,209.55,209.48,34.35]
[1759218758379,2.39055213,209.51,209.48,34.35]
[1759218758700,2.39055213,209.51,209.48,33.66]
[1759218759684,2.39055213,209.51,209.49,4.77349754]
[1759218759976,3.10055213,209.53,209.49,4.77349754]
[1759218760175,2.39055213,209.53,209.47,0.69]
[1759218760375,2.39055213,209.48,209.44,33.96]
[1759218760588,2.39055213,209.48,209.45,0.69]
[1759218760792,2.39055213,209.49,209.45,0.69]
[1759218761101,2.39055213,209.5,209.45,0.69]
[1759218761398,3.10055213,209.5,209.46,33.66]
[1759218761771,3.10055213,209.5,209.47,4.77395331]
[1759218763904,3.10055213,209.49,209.47,4.77395331]
[1759218765229,2.39055213,209.49,209.47,4.77395331]
[1759218765706,2.39055213,209.49,209.24,23.89502677]
[1759218765707,3.10055213,209.48,209.42,0.1]
[1759218765894,2.39055213,209.43,209.42,0.1]
[1759218766283,3.10055213,209.43,209.42,0.1]
[1759218766905,2.39055213,209.43,209.42,0.1]
[1759218767093,3.10055213,209.43,209.42,0.1]
[1759218772206,2.39055213,209.45,209.42,4.87509311]
[1759218772384,0.7,209.44,209.42,4.87509311]
[1759218772584,3.09055213,209.44,209.42,4.87509311]
[1759218774110,2.39055213,209.45,209.42,4.87509311]
[1759218774310,3.09055213,209.45,209.42,4.87509311]
[1759218775089,2.39055213,209.45,209.42,4.87509311]
[1759218775288,3.09055213,209.45,209.42,4.87509311]
[1759218776009,2.39055213,209.45,209.42,4.87509311]
[1759218776218,3.09055213,209.44,209.42,4.87509311]
[1759218777011,2.39055213,209.44,209.42,4.87509311]
[1759218778306,3.09055213,209.44,209.42,4.87509311]
[1759218778488,3.09055213,209.44,209.42,0.1]
[1759218779504,2.39055213,209.44,209.42,4.8750722]
[1759218779909,3.09055213,209.44,209.42,4.8750722]
[1759218780814,3.09055213,209.43,209.42,0.1]
[1759218781221,3.09055213,209.43,209.41,0.1]
[1759218781394,2.39055213,209.42,209.35,0.1]
[1759218781593,2.39055213,209.36,209.35,0.1]
[1759218781794,3.09055213,209.36,209.35,0.1]
[1759218790414,7.86701372,209.36,209.35,0.1]
[1759218793435,41.48701372,209.36,209.35,0.1]
[1759218793736,36.71055213,209.36,209.35,0.1]
[1759218794917,2.39055213,209.36,209.35,0.1]
[1759218795525,7.85701372,209.36,209.35,0.1]
[1759218797034,29.08055213,209.36,209.35,0.1]
[1759218798632,33.85701372,209.36,209.35,0.1]
[1759218802427,67.45701372,209.36,209.35,0.1]
[1759218805757,84.17690207,209.36,209.27,0.1]
[1759218805968,2.39055213,209.28,209.27,0.1]
[1759218806444,3.07055213,209.28,209.27,0.1]
[1759218806650,2.39055213,209.28,209.27,0.1]
[1759218807533,7.16883959,209.28,209.27,0.1]
[1759218807726,2.39055213,209.28,209.27,0.1]
[1759218808028,3.07055213,209.28,209.27,0.1]
[1759218808947,33.16883959,209.28,209.27,0.1]
[1759218811544,28.39055213,209.28,209.27,0.1]
[1759218812148,33.16883959,209.28,209.27,0.1]
[1759218813450,33.84883959,209.28,209.27,0.1]
[1759218813649,67.44883959,209.28,209.27,0.1]
[1759218815854,65.05828746,209.28,209.27,0.1]
[1759218816035,67.44883959,209.28,209.27,0.1]
[1759218816365,65.91211916,209.28,209.27,0.1]
[1759218816747,66.59211916,209.28,209.27,0.1]
[1759218818058,61.1338317,209.28,209.27,0.1]
[1759218819237,1.5338317,209.28,209.27,0.81]
[1759218819455,1.5338317,209.29,209.27,0.81]
[1759218819957,1.5338317,209.28,209.27,0.81]
[1759218820158,3.14501926,209.32,209.27,0.81]
[1759218820358,1.5338317,209.28,209.27,0.81]
[1759218823863,1.5338317,209.28,209.27,0.1]
[1759218825153,6.99211916,209.28,209.27,0.1]
[1759218825346,2.2138317,209.28,209.27,0.1]
[1759218826268,6.99211916,209.28,209.27,0.1]
[1759218828162,6.99211916,209.28,209.21,0.1]
[1759218828163,20.47166951,209.28,209.21,0.1]
[1759218828370,1.5338317,209.22,209.21,0.1]
[1759218830958,6.31332472,209.23,209.21,0.1]
[1759218831158,6.99332472,209.23,209.21,0.1]
[1759218832750,2.2238317,209.22,209.21,0.1]
[1759218833049,1.5338317,209.22,209.21,0.1]
[1759218834569,5.46949302,209.23,209.21,0.1]
[1759218834570,7.00332472,209.23,209.21,0.1]
[1759218834958,1.5338317,209.22,209.21,0.1]
[1759218835496,2.2238317,209.22,209.21,0.1]
[1759218835660,35.8238317,209.22,209.21,0.1]
[1759218836547,40.60348947,209.22,209.21,0.1]
[1759218838774,39.91348947,209.22,209.21,0.1]
[1759218839375,7.00301289,209.25,209.21,0.1]
[1759218839570,1.5338317,209.24,209.21,0.8]
[1759218839768,2.2238317,209.24,209.21,0.1]
[1759218840087,0.69,209.23,209.21,0.1]
[1759218840316,1.5338317,209.24,209.21,0.1]
[1759218840465,1.5338317,209.24,209.21,0.8]
[1759218840670,6.31318956,209.24,209.21,0.8]
[1759218841262,13.59559401,209.3,209.21,0.8]
[1759218841263,0.69,209.33,209.22,0.7]
[1759218841484,3.15587694,209.33,209.23,13.59559401]
[1759218841688,25.9438317,209.34,209.24,0.7]
[1759218841860,2.2238317,209.33,209.24,0.7]
[1759218842067,26.0,209.31,209.24,0.7]
[1759218842261,26.0,209.31,209.21,4.87975573]
[1759218842262,1.5338317,209.27,209.21,0.1]
[1759218842462,1.5338317,209.25,209.21,0.1]
[1759218842863,1.5338317,209.25,209.22,0.7]
[1759218843062,11.94528519,209.29,209.21,0.1]
[1759218843063,3.93880703,209.36,209.23,0.7]
[1759218843268,1.5338317,209.31,209.23,0.7]
[1759218843569,2.2238317,209.31,209.23,0.7]
[1759218843774,34.1538317,209.33,209.23,0.7]
[1759218844087,32.62,209.33,209.23,0.7]
[1759218844289,0.69,209.38,209.25,13.59559401]
[1759218844492,1.5338317,209.35,209.27,13.59559401]
[1759218844790,2.2238317,209.35,209.29,4.77805915]
[1759218844992,7.00057559,209.35,209.29,5.47805915]
[1759218845204,0.69,209.35,209.29,5.47805915]
[1759218845381,0.69,209.35,209.3,0.7]
[1759218845696,5.46669057,209.35,209.3,0.7]
[1759218846569,0.69,209.34,209.27,18.37395945]
[1759218846801,34.33,209.33,209.26,0.7]
[1759218847092,34.33,209.33,209.27,0.7]
[1759218847276,5.4671608,209.33,209.27,0.7]
[1759218848269,7.0009925,209.33,209.27,0.7]
[1759218849093,6.31132049,209.32,209.27,0.7]
[1759218849504,7.00132049,209.32,209.27,0.7]
[1759218849869,0.69,209.31,209.25,5.47896224]
[1759218850075,0.69,209.31,209.26,0.7]
[1759218850275,34.35,209.34,209.27,0.7]
[1759218850478,0.69,209.34,209.28,13.59559401]
[1759218850701,30.77670131,209.35,209.29,0.7]
[1759218850880,33.00053301,209.35,209.28,13.59559401]
[1759218851081,0.69,209.34,209.28,19.07379146]
[1759218852383,7.00078056,209.34,209.28,14.29559401]
[1759218852586,2.2238317,209.34,209.28,14.29559401]
[1759218852890,0.69,209.34,209.29,0.7]
[1759218853077,26.0,209.35,209.3,0.7]
[1759218853501,26.0,209.35,209.28,18.37380269]
[1759218853702,26.0,209.35,209.31,0.7]
[1759218854280,0.69,209.34,209.29,4.77805468]
[1759218854484,0.69,209.33,209.27,5.47832416]
[1759218854687,0.69,209.33,209.27,4.77832416]
[1759218854882,0.69,209.33,209.28,0.7]
[1759218855605,0.69,209.32,209.27,4.77832416]
[1759218855899,0.69,209.32,209.27,5.47832416]
[1759218856100,0.69,209.32,209.28,0.7]
[1759218856302,0.69,209.32,209.28,5.47824681]
[1759218857297,4.77700449,209.34,209.28,5.47824681]
[1759218857613,6.98083619,209.34,209.28,0.67]
[1759218857785,1.5338317,209.32,209.23,13.59559401]
[1759218858111,1.5338317,209.3,209.24,0.67]
[1759218858404,0.67,209.31,209.24,0.67]
[1759218858599,5.44700449,209.34,209.25,13.59559401]
[1759218858803,5.44700449,209.34,209.26,0.67]
[1759218859308,26.0,209.35,209.27,13.59559401]
[1759218859599,0.67,209.39,209.29,13.59559401]
[1759218859900,0.67,209.39,209.31,13.59559401]
[1759218860298,0.67,209.39,209.33,13.59559401]
[1759218860702,0.67,209.39,209.33,18.37251405]
[1759218860895,1.5338317,209.41,209.34,0.67]
[1759218861201,40.67845986,209.45,209.35,13.59559401]
[1759218861405,40.67845986,209.45,209.37,13.59559401]
[1759218861598,66.67845986,209.45,209.38,0.68]
[1759218861911,40.67845986,209.45,209.38,0.68]
[1759218862283,66.67845986,209.45,209.39,4.77577725]
[1759218862493,0.69,209.44,209.39,4.77577725]
[1759218862697,66.00845986,209.45,209.39,4.77577725]
[1759218862698,0.69,209.43,209.39,4.77577725]
[1759218862881,0.69,209.43,209.38,0.68]
[1759218863094,0.69,209.42,209.36,5.45643964]
[1759218863802,2.2238317,209.44,209.37,0.68]
[1759218864707,6.99856525,209.44,209.38,4.77600534]
[1759218864887,2.2238317,209.44,209.38,4.77600534]
[1759218865490,1.5338317,209.46,209.39,0.68]
[1759218865709,0.69,209.46,209.39,0.68]
[1759218866807,5.46426078,209.46,209.39,5.45561185]
[1759218867910,0.69,209.45,209.39,5.45561185]
[1759218870203,0.69,209.44,209.37,19.05162572]
[1759218871401,5.46474281,209.44,209.37,19.05162572]
[1759218872128,5.46474281,209.44,209.38,0.68]
[1759218873024,0.69,209.44,209.38,5.45599663]
[1759218873902,5.46482924,209.44,209.38,5.45599663]
[1759218875218,0.69,209.44,209.38,4.77599663]
[1759218875410,0.69,209.44,209.39,0.68]
[1759218875607,0.69,209.44,209.38,4.77599663]
[1759218875814,0.69,209.44,209.4,0.68]
[1759218876126,4.77442899,209.45,209.4,0.68]
[1759218876313,0.69,209.45,209.4,0.68]
[1759218877527,4.77418122,209.46,209.4,5.45549889]
[1759218877723,5.46418122,209.46,209.4,5.45549889]
[1759218878399,7.8559243,209.46,209.4,5.45549889]
[1759218878604,3.08174308,209.45,209.39,4.77576877]
[1759218878934,0.69,209.44,209.39,4.77576877]
[1759218879225,0.69,209.44,209.39,5.45576877]
[1759218879406,0.69,209.43,209.39,5.45576877]
[1759218879814,7.16635799,209.45,209.39,5.45576877]
[1759218880015,3.08174308,209.44,209.39,5.45576877]
[1759218881926,7.85646086,209.44,209.39,5.45576877]
[1759218884027,2.39174308,209.42,209.36,4.77637178]
[1759218884226,3.08174308,209.42,209.36,4.77637178]
[1759218884529,3.08174308,209.42,209.36,5.45637178]
[1759218884729,0.69,209.42,209.36,4.77637178]
[1759218885030,0.69,209.42,209.36,5.45637178]
[1759218885205,3.08174308,209.41,209.34,52.63237693]
[1759218885401,0.69,209.4,209.34,52.63237693]
[1759218885830,0.69,209.4,209.34,19.05237693]
[1759218886335,3.08174308,209.39,209.34,0.68]
[1759218886715,0.69,209.38,209.34,5.4569077]
[1759218886914,0.69,209.38,209.32,18.37296836]
[1759218887220,0.69,209.38,209.32,14.27559401]
[1759218887536,0.69,209.38,209.33,0.68]
[1759218887713,0.69,209.38,209.34,0.68]
[1759218888536,0.69,209.38,209.34,5.45685897]
[1759218889036,26.0,209.41,209.35,0.68]
[1759218889336,26.0,209.42,209.35,0.68]
[1759218889836,0.69,209.43,209.36,13.59559401]
[1759218890146,0.69,209.43,209.37,0.68]
[1759218890644,0.69,209.43,209.38,4.77600534]
[1759218890816,0.69,209.43,209.38,5.45600534]
[1759218892142,62.62174308,209.45,209.39,0.66]
[1759218892329,31.42442972,209.45,209.39,0.66]
[1759218892524,5.42442972,209.45,209.39,0.66]
[1759218892838,7.8161728,209.45,209.39,4.77558778]
[1759218893041,0.65,209.44,209.39,4.77558778]
[1759218893234,0.65,209.43,209.39,5.43558778]
[1759218896250,5.42489711,209.43,209.37,4.77605649]
[1759218896449,0.65,209.42,209.37,4.77605649]
[1759218896740,0.65,209.42,209.37,5.43605649]
[1759218896940,0.65,209.42,209.38,0.66]
[1759218898744,0.65,209.42,209.38,5.43595681]
[1759218899647,7.81639202,209.44,209.39,0.66]
[1759218899824,0.65,209.43,209.39,0.66]
[1759218900422,3.04174308,209.42,209.37,0.66]
[1759218900735,0.65,209.41,209.37,5.43608375]
[1759218900935,2.39174308,209.43,209.37,5.43608375]
[1759218901249,29.16501239,209.46,209.39,13.59559401]
[1759218901431,26.0,209.46,209.4,0.66]
[1759218902839,26.0,209.46,209.41,4.77532114]
[1759218903047,26.65,209.46,209.41,5.43532114]
[1759218903421,0.65,209.46,209.41,5.43532114]
[1759218903627,0.2,209.48,209.42,14.25559401]
[1759218903846,0.2,209.48,209.44,13.59559401]
[1759218904350,0.2,209.48,209.45,0.66]
[1759218904745,0.2,209.48,209.46,0.66]
[1759218904943,0.2,209.48,209.44,13.59559401]
[1759218905147,0.65,209.47,209.44,13.59559401]
[1759218905532,0.2,209.48,209.44,0.66]
[1759218905732,3.36656325,209.48,209.44,0.66]
[1759218906755,4.01656325,209.48,209.45,4.77440916]
[1759218906955,0.85,209.48,209.45,4.77440916]
[1759218907250,4.01656325,209.48,209.45,4.77440916]
[1759218907447,0.85,209.48,209.45,4.77440916]
[1759218907648,4.01656325,209.48,209.45,4.77440916]
[1759218907873,0.65,209.47,209.43,13.59559401]
[1759218909062,3.36656325,209.48,209.42,13.59559401]
[1759218909244,3.36656325,209.48,209.44,0.66]
[1759218909445,0.2,209.48,209.45,0.66]
[1759218909844,0.2,209.48,209.47,4.77395331]
[1759218910461,0.2,209.48,209.47,5.43395331]
[1759218910635,0.2,209.48,209.47,19.02954732]
[1759218911860,0.2,209.48,209.47,13.59559401]
[1759218912241,0.2,209.48,209.47,19.02954732]
[1759218912856,0.2,209.48,209.47,18.36954732]
[1759218913242,0.2,209.48,209.47,19.02954732]
[1759218918646,0.2,209.48,209.47,18.36954732]
[1759218919049,0.2,209.48,209.47,19.04954732]
[1759218922372,0.87,209.48,209.38,0.056811]
[1759218922666,0.87,209.48,209.42,13.59559401]
[1759218922902,0.2,209.48,209.42,13.59559401]
[1759218923062,0.67,209.47,209.42,13.59559401]
[1759218923262,0.67,209.46,209.39,38.99577725]
[1759218923570,0.67,209.45,209.4,13.59559401]
[1759218923782,0.67,209.45,209.4,14.25559401]
[1759218924475,0.67,209.45,209.42,13.59559401]
[1759218925378,0.67,209.47,209.42,14.25559401]
[1759218925679,0.67,209.47,209.43,0.66]
[1759218925850,0.2,209.48,209.44,13.59559401]
[1759218926049,0.2,209.48,209.45,0.66]
[1759218926249,0.2,209.48,209.46,13.59559401]
[1759218926562,0.2,209.48,209.47,52.58954732]
[1759218929788,0.67,209.55,209.48,13.59559401]
[1759218929990,0.67,209.55,209.48,14.25559401]
[1759218930291,0.67,209.55,209.49,0.66]
[1759218930474,0.67,209.55,209.51,13.59559401]
[1759218930685,0.67,209.55,209.52,4.77281405]
[1759218932060,0.67,209.54,209.52,4.77281405]
[1759218937932,0.2,209.56,209.52,4.77281405]
[1759218938098,0.2,209.56,209.53,47.81559401]
[1759218938469,0.2,209.56,209.54,0.66]
[1759218939269,0.2,209.56,209.55,0.66]
[1759218939477,0.2,209.56,209.53,47.81559401]
[1759218939792,0.2,209.56,209.54,0.66]
[1759218940185,0.2,209.56,209.54,5.43235849]
[1759218940980,0.2,209.56,209.55,13.59559401]
[1759218941480,0.87,209.56,209.55,13.59559401]
[1759218941726,2.39835193,209.56,209.52,4.77279143]
[1759218942023,0.67,209.55,209.53,33.56]
[1759218942214,0.67,209.54,209.53,33.56]
[1759218942790,0.87,209.56,209.53,38.33258626]
[1759218943096,0.67,209.55,209.53,38.33258626]
[1759218943308,0.67,209.55,209.53,33.56]
[1759218944013,0.67,209.55,209.53,38.33250766]
[1759218944709,0.67,209.55,209.53,4.77250766]
[1759218945102,0.2,209.56,209.53,4.77250766]
[1759218945429,0.87,209.56,209.53,4.77250766]
[1759218945613,0.2,209.56,209.53,16.70397332]
[1759218945796,0.2,209.56,209.54,14.25559401]
[1759218945997,0.2,209.56,209.55,47.15559401]
[1759218947699,0.2,209.56,209.55,51.92772476]
[1759218948022,0.87,209.56,209.53,33.56]
[1759218948215,0.67,209.55,209.53,33.56]
[1759218948531,0.2,209.56,209.53,33.56]
[1759218949022,0.87,209.56,209.53,33.56]
[1759218949922,0.87,209.56,209.54,4.77235849]
[1759218950222,0.2,209.56,209.54,4.77235849]
[1759218950399,0.87,209.56,209.54,4.77235849]
[1759218950724,0.87,209.56,209.53,38.3325578]
[1759218951707,0.2,209.56,209.53,38.3325578]
[1759218951914,0.7,209.55,209.53,38.3325578]
[1759218952589,0.2,209.56,209.53,38.3325578]
[1759218952789,0.2,209.56,209.54,0.72]
[1759218953202,0.2,209.56,209.53,50.26402346]
[1759218953701,0.2,209.56,209.53,38.3325578]
[1759218953920,0.7,209.55,209.53,38.3325578]
[1759218954296,0.2,209.56,209.53,38.3325578]
[1759218954496,0.2,209.56,209.53,39.0525578]
[1759218956824,0.2,209.56,209.53,38.3325578]
[1759218957797,0.9,209.56,209.53,38.3325578]
[1759218958198,0.2,209.56,209.53,38.3325578]
[1759218958497,0.2,209.56,209.53,39.0525578]
[1759218959403,0.2,209.56,209.53,38.3325578]
[1759218959603,0.2,209.56,209.54,0.72]
[1759218960108,0.2,209.56,209.53,38.3325578]
[1759218960510,0.2,209.56,209.53,39.0525578]
[1759218962529,0.2,209.56,209.53,38.3325578]
[1759218962733,0.2,209.56,209.53,39.0525578]
[1759218966714,1.72835193,209.56,209.53,39.0525578]
[1759218967303,0.2,209.56,209.53,39.0525578]
[1759218967505,0.7,209.55,209.53,38.3325578]
[1759218968504,0.7,209.55,209.53,33.56]
[1759218968711,1.72835193,209.56,209.52,0.3]
[1759218968712,2.22835193,209.54,209.52,0.3]
[1759218968929,0.7,209.53,209.52,0.3]
[1759218970703,1.52835193,209.54,209.52,0.3]
[1759218970902,2.22835193,209.53,209.48,4.77353082]
[1759218971206,1.52835193,209.51,209.48,38.33353082]
[1759218971402,2.22835193,209.51,209.48,38.33353082]
[1759218971627,1.52835193,209.52,209.48,39.05353082]
[1759218972015,2.22835193,209.52,209.48,39.05353082]
[1759218972218,0.7,209.51,209.48,38.33353082]
[1759218972613,2.22835193,209.51,209.48,38.33353082]
[1759218973204,1.52835193,209.51,209.48,38.33353082]
[1759218973524,2.22835193,209.51,209.48,33.56]
[1759218974519,2.22835193,209.51,209.48,38.33369764]
[1759218976231,1.52835193,209.51,209.48,39.05369764]
[1759218977532,1.52835193,209.52,209.48,39.05369764]
[1759218977837,2.22835193,209.52,209.48,39.05369764]
[1759218981523,1.52835193,209.51,209.48,39.05369764]
[1759218984428,1.52835193,209.49,209.46,5.07396676]
[1759218984625,1.52835193,209.48,209.46,38.33396676]
[1759218985534,1.52835193,209.49,209.46,38.33396676]
[1759218985714,1.52835193,209.49,209.46,39.01396676]
[1759218986128,4.77282418,209.52,209.46,39.01396676]
[1759218986346,1.52835193,209.49,209.46,39.01396676]
[1759218986847,3.17288156,209.54,209.47,14.27559401]
[1759218987025,1.52835193,209.52,209.48,34.24]
[1759218987349,34.62456628,209.57,209.5,13.59559401]
[1759218987540,1.52835193,209.54,209.5,47.15559401]
[1759218987743,1.52835193,209.54,209.5,52.60869365]
[1759218989246,30.97196661,209.56,209.5,47.15559401]
[1759218989548,1.52835193,209.52,209.5,47.15559401]
[1759218989850,1.52835193,209.51,209.5,47.15559401]
[1759218990842,1.52835193,209.52,209.5,47.15559401]
[1759218991146,1.52835193,209.52,209.5,33.56]
[1759218991325,1.52835193,209.51,209.5,33.56]
[1759218991526,2.20835193,209.51,209.5,33.56]
[1759218991726,2.20835193,209.51,209.47,0.3]
[1759218991948,1.52835193,209.48,209.47,0.3]
[1759218992137,0.68,209.52,209.48,13.59559401]
[1759218992447,1.52835193,209.5,209.48,14.27559401]
[1759218992641,1.52835193,209.51,209.48,14.27559401]
[1759218994045,1.52835193,209.51,209.48,19.04913135]
[1759218997941,1.52835193,209.5,209.48,19.04913135]
[1759219000271,2.3905399,209.5,209.48,19.04913135]
[1759219000567,2.3905399,209.51,209.49,5.45349754]
[1759219001036,2.3905399,209.51,209.49,4.77349754]
[1759219001863,2.3905399,209.5,209.49,4.77349754]
[1759219002567,2.3905399,209.51,209.49,4.77349754]
[1759219004039,3.0705399,209.51,209.49,4.77349754]
[1759219004358,3.0705399,209.51,209.48,18.36928144]
[1759219004573,2.3905399,209.5,209.48,18.36928144]
[1759219004868,2.3905399,209.5,209.48,13.59559401]
[1759219005767,3.0705399,209.49,209.47,33.86]
[1759219006057,3.0705399,209.48,209.47,0.3]
[1759219006659,2.3905399,209.48,209.47,0.3]
[1759219007159,3.0705399,209.48,209.47,0.3]
[1759219007358,2.3905399,209.48,209.47,0.3]
[1759219008964,3.0705399,209.48,209.47,0.3]
[1759219009164,3.0705399,209.48,209.4,11.93117255]
[1759219009165,7.84427358,209.48,209.41,4.77524302]
[1759219009347,0.68,209.47,209.42,33.54]
[1759219009671,3.17288156,209.51,209.43,14.27559401]
[1759219009867,3.17288156,209.51,209.41,26.0]
[1759219009868,2.3905399,209.5,209.45,13.59559401]
[1759219010056,2.3905399,209.5,209.46,34.22]
[1759219010247,3.0705399,209.5,209.46,34.22]
[1759219010457,3.0705399,209.52,209.47,0.68]
[1759219010756,3.0705399,209.52,209.46,33.54]
[1759219010957,3.0705399,209.51,209.46,33.54]
[1759219011276,3.0705399,209.51,209.47,4.77395331]
[1759219012040,3.1105399,209.5,209.46,38.31416628]
[1759219012241,2.3905399,209.47,209.46,33.54]
[1759219012564,2.3905399,209.47,209.44,38.31463712]
[1759219012867,3.1105399,209.48,209.44,38.99463712]
[1759219015171,2.3905399,209.48,209.45,0.68]
[1759219015668,3.1105399,209.48,209.44,38.31463712]
[1759219015847,3.1105399,209.48,209.42,13.59559401]
[1759219015848,2.3905399,209.45,209.42,13.59559401]
[1759219016052,2.3905399,209.44,209.42,47.13559401]
[1759219016272,2.3905399,209.44,209.42,33.54]
[1759219016867,3.1105399,209.43,209.41,18.37090815]
[1759219018860,3.1105399,209.43,209.41,13.59559401]
[1759219019248,2.3905399,209.43,209.41,13.59559401]
[1759219019567,0.72,209.42,209.41,13.59559401]
[1759219019866,3.1105399,209.42,209.41,13.59559401]
[1759219020237,3.1105399,209.42,209.38,0.356811]
[1759219020474,2.3905399,209.4,209.38,0.056811]
[1759219020954,2.3905399,209.39,209.38,0.056811]
[1759219021155,3.1105399,209.39,209.38,0.056811]
[1759219021559,2.3905399,209.39,209.38,0.056811]
[1759219022162,2.3905399,209.4,209.38,0.056811]
[1759219022467,2.3905399,209.43,209.39,13.59559401]
[1759219022845,2.3905399,209.42,209.39,13.59559401]
[1759219023573,3.1105399,209.42,209.39,18.37131029]
[1759219024445,2.3905399,209.4,209.38,0.056811]
[1759219024862,2.3905399,209.39,209.38,0.056811]
[1759219025463,3.1105399,209.39,209.38,0.056811]
[1759219026451,7.88631715,209.39,209.38,0.056811]
[1759219026861,0.72,209.39,209.38,0.056811]
[1759219027170,3.1105399,209.39,209.38,0.056811]
[1759219027374,7.88631715,209.39,209.38,0.056811]
[1759219030653,41.42631715,209.39,209.38,0.056811]
[1759219031655,2.3905399,209.3,209.28,13.59559401]
[1759219031962,2.3905399,209.3,209.28,14.27559401]
[1759219034564,5.4971561,209.33,209.28,0.68]
[1759219034768,2.3905399,209.3,209.28,0.68]
[1759219035657,2.3905399,209.29,209.27,4.87834232]
[1759219035857,2.3905399,209.29,209.27,5.57834232]
[1759219036282,3.0605399,209.29,209.27,0.1]
[1759219036778,2.3905399,209.29,209.27,0.1]
[1759219038661,2.3905399,209.28,209.27,0.1]
[1759219039874,2.3905399,209.29,209.27,0.1]
[1759219040692,3.0605399,209.29,209.27,0.1]
[1759219040879,2.3905399,209.29,209.27,0.1]
[1759219041282,2.3905399,209.29,209.27,4.87849807]
[1759219043022,2.3905399,209.3,209.27,4.87849807]
[1759219043180,3.0705399,209.3,209.27,4.87849807]
[1759219044096,0.68,209.36,209.28,14.25559401]
[1759219044405,0.68,209.36,209.3,13.59559401]
[1759219044406,2.3905399,209.36,209.3,13.59559401]
[1759219044606,2.3905399,209.36,209.31,0.66]
[1759219044773,3.0705399,209.36,209.32,0.66]
[1759219045101,2.3905399,209.34,209.3,14.25559401]
[1759219045300,3.0705399,209.34,209.3,13.59559401]
[1759219046198,3.0705399,209.34,209.31,4.77760259]
[1759219046375,2.3905399,209.32,209.27,12.70628948]
[1759219046575,3.0705399,209.32,209.28,13.59559401]
[1759219046892,2.3905399,209.32,209.28,14.25559401]
[1759219047093,2.3905399,209.29,209.27,0.1]
[1759219047279,2.3905399,209.28,209.27,0.1]
[1759219048175,2.3905399,209.29,209.27,0.1]
[1759219048381,2.3905399,209.3,209.27,0.1]
[1759219048583,2.3905399,209.29,209.27,0.1]
[1759219049689,2.3905399,209.29,209.27,4.87849484]
[1759219050990,2.3905399,209.29,209.27,0.1]
[1759219050991,2.3905399,209.28,209.27,0.1]
[1759219052084,3.0705399,209.29,209.27,0.1]
[1759219052281,2.3905399,209.3,209.27,4.87849492]
[1759219052490,2.3905399,209.29,209.27,0.1]
[1759219053185,2.3905399,209.28,209.27,0.1]
[1759219054091,3.0705399,209.29,209.27,0.1]
[1759219054296,2.3905399,209.28,209.27,0.1]
[1759219056482,0.68,209.29,209.27,0.1]
[1759219056677,3.0705399,209.29,209.27,4.87850602]
[1759219057811,26.0,209.32,209.27,4.87850602]
[1759219057978,26.0,209.32,209.27,0.1]
[1759219057979,2.3905399,209.29,209.27,0.1]
[1759219058404,0.68,209.28,209.27,0.1]
[1759219059108,3.0705399,209.28,209.27,0.1]
[1759219059490,2.3905399,209.28,209.27,0.1]
[1759219059686,2.3905399,209.29,209.27,0.1]
[1759219059886,3.0705399,209.3,209.27,0.1]
[1759219060289,3.0705399,209.3,209.27,4.87851579]
[1759219060488,28.3905399,209.31,209.28,0.66]
[1759219060688,29.0705399,209.31,209.27,4.87851579]
[1759219060906,3.0705399,209.3,209.27,4.87851579]
[1759219061504,2.3905399,209.3,209.27,0.1]